fUST/lending_fUST_20250501
["ID","MTS","AMOUNT","RATE_DAILY","PERIOD"]
[359458813,1746036632594,-1200.0,0.00039205,60]
[359458814,1746036632604,-500.0,0.00039488,5]
[359458815,1746036632614,-487.4858519,0.00039581,2]
[359458816,1746036632625,-622.05,0.00039585,15]
[359458817,1746036632635,-500.0,0.00039621,5]
[359458818,1746036632645,-500.0,0.00039621,5]
[359458819,1746036632656,-983.0,0.00039661,5]
[359458820,1746036632665,-840.90604152,0.00039706,2]
[359458821,1746036632675,-160.0,0.00039706,2]
[359458822,1746036632685,-160.0,0.00039706,2]
[359458823,1746036632694,-400.0,0.00039744,12]
[359458824,1746036632704,-400.0,0.00039744,12]
[359458825,1746036632714,-500.0,0.00039744,12]
[359458826,1746036632724,-159.13584981,0.00039794,2]
[359458827,1746036632734,-560.0,0.00039838,5]
[359458828,1746036632743,-1010.27394099,0.00039884,3]
[359458829,1746036632753,-500.0,0.00039891,31]
[359458830,1746036632763,-457.18409049,0.00039891,31]
[359458831,1746036632772,-500.0,0.00039891,31]
[359458832,1746036632783,-400.0,0.00039893,12]
[359458833,1746036632794,-400.0,0.00039893,12]
[359458834,1746036632805,-400.0,0.00039893,12]
[359458835,1746036632815,-400.0,0.00039893,12]
[359458836,1746036632825,-436.70555918,0.00039893,12]
[359458837,1746036632835,-484.15,0.00039893,12]
[359458838,1746036632844,-400.0,0.00039893,12]
[359458839,1746036632854,-400.0,0.00039893,12]
[359458840,1746036632863,-400.0,0.00039893,12]
[359458841,1746036632873,-400.0,0.00039893,12]
[359458842,1746036632883,-400.0,0.00039893,12]
[359458843,1746036632893,-400.0,0.00039893,12]
[359458844,1746036632903,-400.0,0.00039893,12]
[359458845,1746036632913,-400.0,0.00039893,12]
[359458846,1746036632922,-400.0,0.00039893,12]
[359458847,1746036632932,-400.0,0.00039893,12]
[359458848,1746036632941,-400.0,0.00039893,12]
[359458849,1746036632951,-400.0,0.00039893,12]
[359458850,1746036632961,-400.0,0.00039893,12]
[359458851,1746036632971,-400.0,0.00039893,12]
[359458852,1746036632981,-400.0,0.00039893,12]
[359458853,1746036632990,-229.15426283,0.00039893,12]
[359458854,1746036633000,-400.0,0.00039893,12]
[359458855,1746036633010,-400.0,0.00039893,12]
[359458856,1746036633019,-400.0,0.00039893,12]
[359458857,1746036633029,-400.0,0.00039893,12]
[359458858,1746036633039,-400.0,0.00039893,12]
[359458859,1746036633050,-400.0,0.00039893,12]
[359458860,1746036633060,-400.0,0.00039893,12]
[359458861,1746036633071,-400.0,0.00039893,12]
[359458862,1746036633085,-400.0,0.00039893,12]
[359458863,1746036633096,-400.0,0.00039893,12]
[359458864,1746036633107,-262.23750346,0.00039893,12]
[359458865,1746036633117,-400.0,0.00039893,12]
[359458866,1746036633127,-244.58820008,0.00039893,12]
[359458867,1746036633137,-400.0,0.00039893,12]
[359458868,1746036633147,-400.0,0.00039893,12]
[359458869,1746036633158,-400.0,0.00039893,12]
[359458870,1746036633168,-400.0,0.00039893,12]
[359458871,1746036633179,-185.82119952,0.00039893,12]
[359458872,1746036633190,-500.0,0.00039893,12]
[359458873,1746036633200,-356.23862748,0.00039894,12]
[359458874,1746036633211,-500.0,0.00039894,12]
[359458875,1746036633221,-400.0,0.00039894,12]
[359458876,1746036633231,-400.0,0.00039894,12]
[359458877,1746036633241,-400.0,0.00039894,12]
[359458878,1746036633251,-400.0,0.00039894,12]
[359458879,1746036633262,-425.6,0.00039894,12]
[359458880,1746036633272,-400.0,0.00039894,12]
[359458881,1746036633282,-400.0,0.00039894,12]
[359458882,1746036633292,-400.0,0.00039894,12]
[359458883,1746036633303,-400.0,0.00039894,12]
[359458884,1746036633316,-400.0,0.00039894,12]
[359458885,1746036633326,-400.0,0.00039894,12]
[359458886,1746036633336,-400.0,0.00039894,12]
[359458887,1746036633346,-400.0,0.00039894,12]
[359458888,1746036633356,-316.8311321,0.00039894,12]
[359458889,1746036633366,-400.0,0.00039894,12]
[359458890,1746036633377,-340.88506882,0.00039894,12]
[359458891,1746036633387,-400.0,0.00039894,12]
[359458892,1746036633398,-400.0,0.00039894,12]
[359458893,1746036633408,-500.0,0.00039894,12]
[359458894,1746036633418,-173.84116303,0.00039894,12]
[359458895,1746036633428,-400.0,0.00039894,12]
[359458896,1746036633439,-400.0,0.00039894,12]
[359458897,1746036633449,-400.0,0.00039894,12]
[359458898,1746036633459,-400.0,0.00039894,12]
[359458899,1746036633469,-151.22,0.00039894,12]
[359458900,1746036633479,-2713.14,0.00039894,12]
[359458901,1746036633489,-400.0,0.00039894,12]
[359458902,1746036633499,-400.0,0.00039894,12]
[359458903,1746036633509,-400.0,0.00039894,12]
[359458904,1746036633519,-400.0,0.00039894,12]
[359458905,1746036633531,-206.92047006,0.00039894,12]
[359458906,1746036633541,-400.0,0.00039894,12]
[359458907,1746036633552,-500.0,0.00039894,12]
[359458908,1746036633562,-500.0,0.00039895,12]
[359458909,1746036633572,-500.0,0.00039895,12]
[359458910,1746036633582,-500.0,0.00039895,12]
[359458911,1746036633594,-500.0,0.00039895,12]
[359458912,1746036633604,-500.0,0.00039895,12]
[359458913,1746036633613,-500.0,0.00039895,12]
[359458914,1746036633623,-161.02452369,0.00039895,2]
[359458915,1746036633633,-289.45,0.00039895,12]
[359458916,1746036633643,-400.0,0.00039895,12]
[359458917,1746036633653,-400.0,0.00039895,12]
[359458918,1746036633664,-400.0,0.00039895,12]
[359458919,1746036633674,-400.0,0.00039895,12]
[359458920,1746036633684,-339.17073728,0.00039895,12]
[359458921,1746036633693,-243.49341231,0.000401,19]
[359458922,1746036633703,-3000.0,0.000402,10]
[359458923,1746036633714,-487.4858519,0.00040208,28]
[359458924,1746036633725,-2451.34882406,0.00040208,2]
[359458925,1746036633735,-1002.58628658,0.00040208,120]
[359458926,1746036633746,-412.46231522,0.00040231,12]
[359458927,1746036633756,-262.6719865,0.00040232,12]
[359458928,1746036633766,-800.0,0.00040273,6]
[359458929,1746036633776,-788.77178456,0.00040273,31]
[359458930,1746036633786,-2020.54788198,0.00040283,3]
[359458931,1746036633797,-430.45664266,0.00040288,12]
[359458932,1746036633807,-2713.14,0.0004029,12]
[359458933,1746036633817,-160.0,0.0004029,3]
[359458934,1746036633828,-1010.27394099,0.00040291,3]
[359458935,1746036633838,-15325.24738,0.00040292,4]
[359458936,1746036633850,-2713.14,0.00040293,12]
[359458937,1746036633860,-2713.14,0.00040293,12]
[359458938,1746036633871,-2713.14,0.00040293,12]
[359458939,1746036633881,-2713.14,0.00040293,12]
[359458940,1746036633891,-2713.14,0.00040293,12]
[359458941,1746036633902,-2713.14,0.00040293,12]
[359458942,1746036633912,-2713.14,0.00040293,12]
[359458943,1746036633923,-2713.14,0.00040293,12]
[359458944,1746036633934,-2713.14,0.00040293,12]
[359458945,1746036633945,-2713.14,0.00040293,12]
[359458946,1746036633955,-2713.14,0.00040293,12]
[359458947,1746036633966,-2713.14,0.00040293,12]
[359458948,1746036633977,-2713.14,0.00040293,12]
[359458949,1746036633988,-2713.14,0.00040293,12]
[359458950,1746036633998,-2135.43408734,0.00040293,12]
[359458951,1746036634014,-577.70591266,0.00040293,12]
[359458952,1746036634025,-2713.14,0.00040293,12]
[359458953,1746036634035,-2713.14,0.00040293,12]
[359458954,1746036634045,-2713.14,0.00040293,12]
[359458955,1746036634056,-2713.14,0.00040293,12]
[359458956,1746036634066,-2713.14,0.00040293,12]
[359458957,1746036634076,-2713.14,0.00040293,12]
[359458958,1746036634086,-2713.30626084,0.00040293,12]
[359458959,1746036634096,-151.0,0.00040294,14]
[359458960,1746036634106,-151.0,0.00040294,14]
[359458961,1746036634116,-151.0,0.00040294,14]
[359458962,1746036634126,-151.0,0.00040294,14]
[359458963,1746036634137,-151.0,0.00040294,14]
[359458964,1746036634147,-151.0,0.00040294,14]
[359458965,1746036634158,-151.0,0.00040294,14]
[359458966,1746036634167,-156.390972,0.00040294,14]
[359458967,1746036634177,-151.0,0.00040294,14]
[359458968,1746036634188,-151.0,0.00040294,14]
[359458969,1746036634198,-151.0,0.00040294,14]
[359458970,1746036634208,-151.0,0.00040294,14]
[359458971,1746036634218,-212.008375,0.00040294,14]
[359458972,1746036634229,-151.0,0.00040294,14]
[359458973,1746036634239,-151.0,0.00040294,14]
[359458974,1746036634250,-151.0,0.00040294,14]
[359458975,1746036634260,-151.0,0.00040294,14]
[359458976,1746036634270,-217.950768,0.00040294,14]
[359458977,1746036634280,-5051.36970495,0.00040298,3]
[359458978,1746036634290,-310.480975,0.000403,14]
[359458979,1746036634461,-310.480975,0.000403,14]
[359458980,1746036634471,-310.480975,0.000403,14]
[359458981,1746036634481,-310.480975,0.000403,14]
[359458982,1746036634491,-310.480975,0.000403,14]
[359458983,1746036634501,-310.480975,0.000403,14]
[359458984,1746036634511,-310.480975,0.000403,14]
[359458985,1746036634521,-310.480975,0.000403,14]
[359458986,1746036634531,-310.480975,0.000403,14]
[359458987,1746036634541,-310.480975,0.000403,14]
[359458988,1746036634552,-2000.0,0.000403,26]
[359458989,1746036634562,-2000.0,0.000403,26]
[359458990,1746036634573,-9043.41,0.000403,30]
[359458991,1746036634585,-10400.0,0.000403,5]
[359458992,1746036634595,-421.37435881,0.00040301,7]
[359458993,1746036634605,-1200.0,0.00040301,60]
[359458994,1746036634615,-152.286119,0.00040301,14]
[359458995,1746036634625,-151.0,0.00040301,14]
[359458996,1746036634634,-151.0,0.00040301,14]
[359458997,1746036634645,-151.0,0.00040301,14]
[359458998,1746036634655,-151.0,0.00040301,14]
[359458999,1746036634665,-151.0,0.00040301,14]
[359459000,1746036634675,-151.0,0.00040301,14]
[359459001,1746036634685,-151.0,0.00040301,14]
[359459002,1746036634695,-235.909514,0.00040301,14]
[359459003,1746036634705,-166.299791,0.00040301,14]
[359459004,1746036634716,-151.0,0.00040301,2]
[359459005,1746036634726,-151.0,0.00040301,2]
[359459006,1746036634736,-151.0,0.00040301,2]
[359459007,1746036634746,-151.0,0.00040301,2]
[359459008,1746036634757,-151.0,0.00040301,2]
[359459009,1746036634766,-221.769767,0.00040301,2]
[359459010,1746036634776,-500.0,0.00040301,20]
[359459011,1746036634787,-151.0,0.00040301,20]
[359459012,1746036634797,-220.97161696,0.00040301,20]
[359459013,1746036634807,-151.0,0.00040301,20]
[359459014,1746036634817,-151.0,0.00040301,20]
[359459015,1746036634828,-198.0,0.00040301,20]
[359459016,1746036634837,-151.0,0.00040301,20]
[359459017,1746036634849,-151.0,0.00040301,20]
[359459018,1746036634859,-500.0,0.00040301,5]
[359459019,1746036634869,-200.0,0.00040306,120]
[359459020,1746036634878,-161.90934339,0.00040307,31]
[359459021,1746036634888,-194.39353965,0.00040307,31]
[359459022,1746036634898,-40591.32193273,0.00040308,2]
[359459023,1746036634911,-5568.39822835,0.00040308,2]
[359459024,1746036634923,-262.60356982,0.00040308,2]
[359459025,1746036634935,-727.10796862,0.00040308,2]
[359459026,1746036634946,-586.24138883,0.00040308,2]
[359459077,1746036638170,-500.0,0.00039893,31]
[359459079,1746036638180,-500.0,0.00039893,31]
[359459080,1746036638190,-500.0,0.00039893,31]
[359459081,1746036638200,-356.1,0.00039893,31]
[359459082,1746036638212,-143.9,0.00039893,31]
[359459083,1746036638222,-500.0,0.00039893,31]
[359459084,1746036638231,-500.0,0.00039893,31]
[359459085,1746036638241,-500.0,0.00039893,31]
[359459086,1746036638250,-500.0,0.00039893,31]
[359459087,1746036638260,-500.0,0.00039893,31]
[359459088,1746036638269,-435.8981257,0.00039893,31]
[359459089,1746036638279,-500.0,0.00039893,31]
[359459090,1746036638289,-500.0,0.00039893,31]
[359459091,1746036638299,-500.0,0.00039893,31]
[359459092,1746036638310,-500.0,0.00039893,31]
[359459093,1746036638321,-500.0,0.00039893,31]
[359459094,1746036638331,-500.0,0.00039893,31]
[359459096,1746036638341,-500.0,0.00040307,31]
[359459097,1746036638351,-381.76645841,0.00040307,31]
[359459098,1746036638362,-40207.61510318,0.00040308,2]
[359459099,1746036638374,-4471.65201548,0.00040308,2]
[359459100,1746036638386,-124789.19590215,0.00040308,2]
[359459101,1746036638400,-32768.40506202,0.00040308,3]
[359459102,1746036638411,-151.0,0.00040308,14]
[359459103,1746036638421,-151.0,0.00040308,14]
[359459104,1746036638431,-151.0,0.00040308,14]
[359459105,1746036638440,-151.0,0.00040308,14]
[359459106,1746036638450,-151.0,0.00040308,14]
[359459107,1746036638459,-151.0,0.00040308,14]
[359459108,1746036638480,-151.0,0.00040308,14]
[359459109,1746036638491,-151.0,0.00040308,14]
[359459110,1746036638501,-151.0,0.00040308,14]
[359459111,1746036638511,-151.0,0.00040308,14]
[359459112,1746036638522,-151.0,0.00040308,14]
[359459113,1746036638532,-151.0,0.00040308,14]
[359459114,1746036638542,-151.0,0.00040308,14]
[359459115,1746036638553,-151.0,0.00040308,14]
[359459116,1746036638562,-151.0,0.00040308,14]
[359459117,1746036638572,-192.29573,0.00040308,14]
[359459118,1746036638582,-151.0,0.00040308,14]
[359459119,1746036638594,-151.0,0.00040308,14]
[359459120,1746036638604,-191.749485,0.00040308,14]
[359459121,1746036638614,-191.749485,0.00040308,14]
[359459122,1746036638624,-191.749485,0.00040308,14]
[359459123,1746036638634,-191.749485,0.00040308,14]
[359459124,1746036638644,-191.749485,0.00040308,14]
[359459125,1746036638654,-191.749485,0.00040308,14]
[359459126,1746036638664,-191.749485,0.00040308,14]
[359459127,1746036638674,-191.749485,0.00040308,14]
[359459128,1746036638684,-191.749485,0.00040308,14]
[359459129,1746036638693,-191.749485,0.00040308,14]
[359459130,1746036638703,-151.0,0.00040308,14]
[359459131,1746036638712,-151.0,0.00040308,14]
[359459132,1746036638722,-151.0,0.00040308,14]
[359459133,1746036638732,-151.0,0.00040308,14]
[359459134,1746036638742,-151.0,0.00040308,14]
[359459135,1746036638752,-151.0,0.00040308,14]
[359459136,1746036638762,-151.0,0.00040308,14]
[359459137,1746036638772,-151.0,0.00040308,14]
[359459138,1746036638781,-190.134258,0.00040308,14]
[359459139,1746036638791,-151.0,0.00040308,14]
[359459140,1746036638801,-151.0,0.00040308,14]
[359459141,1746036638811,-151.0,0.00040308,14]
[359459142,1746036638821,-151.0,0.00040308,14]
[359459143,1746036638831,-151.0,0.00040308,14]
[359459144,1746036638842,-151.0,0.00040308,14]
[359459145,1746036638852,-151.0,0.00040308,14]
[359459146,1746036638862,-151.0,0.00040308,14]
[359459147,1746036638871,-151.0,0.00040308,14]
[359459148,1746036638881,-151.0,0.00040308,14]
[359459149,1746036638891,-151.0,0.00040308,14]
[359459150,1746036638901,-151.0,0.00040308,14]
[359459151,1746036638911,-151.0,0.00040308,14]
[359459152,1746036638921,-151.0,0.00040308,14]
[359459153,1746036638930,-151.0,0.00040308,14]
[359459154,1746036638940,-151.0,0.00040308,14]
[359459155,1746036638950,-151.0,0.00040308,14]
[359459156,1746036638960,-1390.151653,0.00040308,2]
[359459157,1746036638970,-151.0,0.00040308,14]
[359459158,1746036638979,-1390.151653,0.00040308,2]
[359459159,1746036638990,-151.0,0.00040308,14]
[359459160,1746036639000,-1390.151653,0.00040308,2]
[359459161,1746036639010,-1390.151653,0.00040308,2]
[359459162,1746036639021,-1390.151653,0.00040308,2]
[359459163,1746036639030,-1390.151653,0.00040308,2]
[359459164,1746036639040,-1390.151653,0.00040308,2]
[359459165,1746036639051,-1390.151653,0.00040308,2]
[359459166,1746036639060,-1390.151653,0.00040308,2]
[359459167,1746036639070,-1390.151653,0.00040308,2]
[359459168,1746036639081,-6335882.19845113,0.00040308,20]
[359459169,1746036639094,-2060.0,0.00040308,20]
[359459170,1746036639206,-190.06527533,0.00040308,20]
[359459171,1746036639218,-474.55340243,0.00040308,20]
[359459198,1746036643292,-403.0,0.00039795,2]
[359459199,1746036643303,-32298.71965822,0.00040308,20]
[359459200,1746036643317,-3363.85243609,0.00040308,20]
[359459202,1746036643346,-6753.39580178,0.00040308,20]
[359459208,1746036674852,9108.2582402,0.00035569,2]
[359459209,1746036697055,164.0,0.00027397,3]
[359459210,1746036736011,1000.0,0.00036178,120]
[359459214,1746037590519,-215.43522682,0.00027397,2]
[359459217,1746037645112,-224.06672764,0.00027397,2]
[359459218,1746037646139,-82.48668554,0.00027397,2]
[359459219,1746037646160,-188.0,0.00027397,3]
[359459220,1746037646181,-313.51100199,0.00033165,2]
[359459221,1746037649855,-208.47763801,0.00033165,2]
[359459222,1746037649876,-721.67336191,0.00035923,2]
[359459223,1746037651115,-1505.34425589,0.00035923,2]
[359459224,1746037651136,-152.68707532,0.00036372,2]
[359459225,1746037651158,-500.0,0.00036472,60]
[359459226,1746037651178,-500.0,0.00036549,7]
[359459227,1746037651200,-500.0,0.0003702,60]
[359459228,1746037651221,-171.740447,0.00037024,2]
[359459229,1746037651244,-400.0,0.00037303,2]
[359459230,1746037651265,-255.120319,0.00037304,2]
[359459231,1746037651285,-350.90513,0.00037304,2]
[359459232,1746037651306,-2939.13775026,0.00037304,2]
[359459245,1746037747090,-473.1538587,0.000275,2]
[359459246,1746037747121,-211.1174264,0.00035862,2]
[359459266,1746037819431,585.14394527,0.00035204,2]
[359459288,1746037832244,-500.0,0.00036472,60]
[359459290,1746037832254,-189.21035373,0.00036548,7]
[359459292,1746037832263,-500.0,0.0003702,60]
[359459294,1746037832273,-400.0,0.00037303,2]
[359459295,1746037832282,-13649.06071152,0.00037304,2]
[359459296,1746037832295,-468.04,0.00037304,2]
[359459297,1746037832349,-1183.5,0.00037304,2]
[359459301,1746037832361,-6660.26153822,0.00037304,2]
[359459302,1746037832371,-70.19821638,0.00037314,2]
[359459347,1746037838175,-221.81235202,0.00037314,2]
[359459349,1746037838186,-500.0,0.00037568,60]
[359459351,1746037838195,-208.6259579,0.00037603,2]
[359459353,1746037838205,-182.04053198,0.00037614,2]
[359459355,1746037838215,-7518.8511581,0.00037614,2]
[359459358,1746037838238,-5068.07028055,0.00037614,2]
[359459361,1746037838252,-2567.31063074,0.00037653,2]
[359459363,1746037838262,-300.0,0.0003782,5]
[359459365,1746037838272,-278.90759642,0.00038116,2]
[359459367,1746037838283,-500.0,0.00038116,60]
[359459369,1746037838292,-500.0,0.00038158,5]
[359459371,1746037838304,-500.0,0.00038267,5]
[359459373,1746037838314,-187.403,0.00038292,51]
[359459375,1746037838324,-154.1030122,0.00038292,4]
[359459377,1746037838334,-400.0,0.00038356,12]
[359459379,1746037838343,-218.84889374,0.00038356,12]
[359459381,1746037838354,-400.0,0.00038356,12]
[359459383,1746037838364,-498.57288523,0.00038356,12]
[359459385,1746037838374,-230.22,0.00038356,12]
[359459387,1746037838383,-366.32944194,0.00038356,12]
[359459390,1746037838396,-133.67055806,0.00038356,12]
[359459392,1746037838406,-500.0,0.00038356,12]
[359459394,1746037838415,-500.0,0.00038356,12]
[359459396,1746037838425,-400.0,0.00038356,12]
[359459397,1746037838434,-441.08,0.00038356,12]
[359459399,1746037838443,-400.0,0.00038356,12]
[359459401,1746037838453,-400.0,0.00038356,12]
[359459402,1746037838463,-400.0,0.00038356,12]
[359459403,1746037838473,-400.0,0.00038356,12]
[359459404,1746037838482,-501.60188421,0.00038356,12]
[359459405,1746037838492,-400.0,0.00038356,12]
[359459406,1746037838501,-500.0,0.00038356,12]
[359459407,1746037838511,-252.42412746,0.00038356,12]
[359459408,1746037838520,-400.0,0.00038356,12]
[359459409,1746037838530,-400.0,0.00038356,12]
[359459410,1746037838540,-398.7,0.00038356,12]
[359459411,1746037838550,-518.6022829,0.00038356,12]
[359459412,1746037838560,-500.0,0.00038356,12]
[359459413,1746037838569,-500.0,0.00038356,12]
[359459414,1746037838579,-400.0,0.00038356,12]
[359459415,1746037838589,-400.0,0.00038356,12]
[359459416,1746037838599,-400.0,0.00038356,12]
[359459417,1746037838608,-277.64948975,0.00038356,12]
[359459418,1746037838618,-400.0,0.00038356,12]
[359459419,1746037838627,-400.0,0.00038356,12]
[359459420,1746037838637,-400.0,0.00038356,12]
[359459421,1746037838647,-400.0,0.00038356,12]
[359459422,1746037838656,-400.0,0.00038356,12]
[359459423,1746037838666,-400.0,0.00038356,12]
[359459424,1746037838675,-400.0,0.00038356,12]
[359459425,1746037838684,-400.0,0.00038356,12]
[359459426,1746037838698,-400.0,0.00038356,12]
[359459427,1746037838707,-400.0,0.00038356,12]
[359459428,1746037838717,-185.19,0.00038356,12]
[359459429,1746037838727,-400.0,0.00038356,12]
[359459430,1746037838737,-400.0,0.00038356,12]
[359459431,1746037838747,-400.0,0.00038356,12]
[359459432,1746037838756,-400.0,0.00038356,12]
[359459433,1746037838766,-400.0,0.00038356,12]
[359459434,1746037838779,-400.0,0.00038356,12]
[359459435,1746037838790,-400.0,0.00038356,12]
[359459436,1746037838799,-443.02,0.00038356,12]
[359459437,1746037838809,-400.0,0.00038356,12]
[359459438,1746037838818,-400.0,0.00038356,12]
[359459439,1746037838828,-400.0,0.00038356,12]
[359459440,1746037838838,-400.0,0.00038356,12]
[359459441,1746037838847,-400.0,0.00038356,12]
[359459442,1746037838860,-400.0,0.00038356,12]
[359459443,1746037838870,-500.0,0.00038356,12]
[359459444,1746037838879,-400.0,0.00038356,12]
[359459445,1746037838889,-400.0,0.00038356,12]
[359459446,1746037838899,-400.0,0.00038356,12]
[359459447,1746037838908,-500.0,0.00038356,12]
[359459448,1746037838918,-500.0,0.00038356,12]
[359459449,1746037838928,-500.0,0.00038356,12]
[359459450,1746037838938,-400.0,0.00038356,12]
[359459451,1746037838947,-400.0,0.00038356,12]
[359459452,1746037838957,-400.0,0.00038356,12]
[359459453,1746037838966,-400.0,0.00038356,12]
[359459454,1746037838976,-400.0,0.00038356,12]
[359459455,1746037838985,-400.0,0.00038356,12]
[359459456,1746037838996,-275.57395198,0.00038356,2]
[359459457,1746037839006,-516.85713748,0.000384,7]
[359459458,1746037839015,-500.0,0.0003841,7]
[359459459,1746037839025,-2677.84289883,0.0003868,30]
[359459460,1746037839036,-598.4,0.000388,2]
[359459461,1746037839046,-500.0,0.00038929,7]
[359459462,1746037839056,-521.98864,0.00038933,2]
[359459463,1746037839066,-500.0,0.00039212,60]
[359459464,1746037839076,-200.0,0.00039256,120]
[359459465,1746037839085,-500.0,0.00039379,7]
[359459466,1746037839095,-669.75798278,0.000395,30]
[359459467,1746037839104,-2308.96,0.00039589,15]
[359459468,1746037839114,-446.32203681,0.0003974,31]
[359459469,1746037839123,-394.17379747,0.0003974,31]
[359459470,1746037839136,-105.82620253,0.0003974,31]
[359459471,1746037839146,-500.0,0.0003974,31]
[359459472,1746037839155,-291.8308855,0.0003974,31]
[359459473,1746037839164,-781.45355502,0.00039741,2]
[359459474,1746037839174,-333.82030424,0.00039774,7]
[359459475,1746037839186,-166.17969576,0.00039774,7]
[359459476,1746037839195,-400.0,0.00039889,12]
[359459477,1746037839205,-255.12038607,0.00039889,12]
[359459478,1746037839215,-400.0,0.00039889,12]
[359459479,1746037839225,-500.0,0.00039889,12]
[359459480,1746037839235,-500.0,0.00039889,12]
[359459481,1746037839245,-400.0,0.00039889,12]
[359459482,1746037839255,-400.0,0.00039889,12]
[359459483,1746037839264,-400.0,0.00039889,12]
[359459484,1746037839274,-400.0,0.00039889,12]
[359459485,1746037839283,-199.929124,0.0003989,12]
[359459486,1746037839293,-400.0,0.0003989,12]
[359459487,1746037839303,-400.0,0.00039892,12]
[359459488,1746037839314,-167.43,0.00039892,12]
[359459489,1746037839324,-400.0,0.00039892,12]
[359459490,1746037839334,-417.65,0.00039892,12]
[359459491,1746037839344,-400.0,0.00039892,12]
[359459492,1746037839354,-420.86,0.00039892,12]
[359459493,1746037839365,-428.57081658,0.00039892,12]
[359459494,1746037839375,-400.0,0.00039892,12]
[359459495,1746037839385,-400.0,0.00039892,12]
[359459496,1746037839395,-400.0,0.00039892,12]
[359459497,1746037839405,-400.0,0.00039892,12]
[359459498,1746037839415,-332.75040641,0.00039892,12]
[359459499,1746037839425,-400.0,0.00039893,12]
[359459500,1746037839435,-400.0,0.00039893,12]
[359459501,1746037839445,-400.0,0.00039894,12]
[359459502,1746037839454,-840.90604152,0.00039897,2]
[359459503,1746037839463,-160.0,0.00039897,2]
[359459504,1746037839474,-560.0,0.00039902,5]
[359459505,1746037839483,-160.0,0.00039903,2]
[359459506,1746037839493,-160.0,0.00039908,2]
[359459507,1746037839502,-160.0,0.00039908,2]
[359459508,1746037839512,-21444.68578844,0.0004,15]
[359459509,1746037839522,-2763.88547103,0.0004,120]
[359459510,1746037839532,-49778.85616113,0.0004,30]
[359459511,1746037839542,-889.80452476,0.0004,120]
[359459512,1746037839552,-1113.69640107,0.0004,120]
[359459513,1746037839562,-365.74461063,0.0004,120]
[359459514,1746037839573,-802.82114355,0.0004,14]
[359459515,1746037839582,-346.77559869,0.0004,30]
[359459516,1746037839592,-10048.49083774,0.0004,2]
[359459517,1746037839602,-172.26208003,0.0004,60]
[359459518,1746037839767,-400.0,0.00040199,12]
[359459519,1746037839778,-585.14394527,0.00040204,2]
[359459520,1746037839788,-707.0,0.00040234,2]
[359459521,1746037839798,-403.0,0.00040234,2]
[359459522,1746037839807,-400.0,0.00040258,12]
[359459523,1746037839817,-400.0,0.00040258,12]
[359459524,1746037839828,-341.57600268,0.00040258,12]
[359459525,1746037839839,-353.43899553,0.00040288,12]
[359459526,1746037839849,-400.0,0.00040292,12]
[359459527,1746037839859,-400.0,0.00040292,12]
[359459528,1746037839869,-400.0,0.00040292,12]
[359459529,1746037839879,-474.87320504,0.00040297,12]
[359459530,1746037839889,-2000.0,0.000403,26]
[359459531,1746037839899,-2000.0,0.000403,26]